[Event "1st Chessable Sunway Formentera 2022"]
[Site "Formentera Punta Prima"]
[Date "2022.05.05"]
[Round "7.6"]
[White "Batsiashvili, Nino"]
[Black "Eugene, Floryan"]
[Result "1/2-1/2"]
[ECO "D31"]
[WhiteElo "2463"]
[BlackElo "2370"]
[Annotator "TA"]
[PlyCount "139"]
[EventDate "2022.05.05"]
[EventType "swiss"]
[EventCountry "ESP"]
[SourceTitle "playchess.com"]
[Source "ChessBase"]
[SourceQuality "1"]
[TimeControl "40/5400+30:1800+30"]

{[%evp 9,139,28,30,9,32,29,27,25,30,25,25,26,32,16,25,23,20,20,18,19,73,62,56,34,52,50,42,42,65,70,60,66,78,93,101,79,94,91,101,-11,-5,-5,-5,-5,-5,-5,-3,-3,-7,-6,0,0,0,0,0,-6,-6,-1,0,0,0,0,0,0,0,0,0,0,6,0,0,0,0,0,0,0,3,0,9,0,0,0,0,0,53,33,267,218,186,56,70,0,0,0,0,0,8,8,8,8,8,0,0,0,16,0,0,0,0,0,0,0,0,0,0,0,0,0,0,0,0,0,0,0,0,0,0,0,0,0,0,0]} 1. d4 {[%emt 0:03:41]} d5 {[%emt 0:00:09]} 2. c4 {[%emt 0:00:14]} e6 {[%emt 0:00:05]} 3. Nf3 {[%emt 0:00:24]} a6 {[%emt 0:00:18]} 4. cxd5 {[%emt 0:00:49]} exd5 {[%emt 0:00:08]} 5. Nc3 {[%emt 0:00:10]} c6 {[%emt 0:00:09]} 6. Qc2 {[%emt 0:04:51] D31: Queen's Gambit Declined: Semi-Slav without ...Nf6 (+ Marshall Gambit and Noteboom) and Exchange Variation lines without ...Nf6.} Nf6 {[%emt 0:01:37]} 7. Bg5 {[%emt 0:00:48]} Be6 {[%emt 0:01:58]} 8. e3 {[%emt 0:02:19] White has an edge.} h6 {[%emt 0:00:12]} 9. Bf4 {[%emt 0:01:30]} c5 {[%emt 0:00:11]} 10. Be2 {[%emt 0:04:22]} Nc6 {[%emt 0:02:28] [#]} 11. O-O $146 {[%emt 0:00:24]} ({Predecessor:} 11. Rd1 Bd6 12. Bxd6 Qxd6 13. dxc5 Qxc5 14. O-O Ne4 15. Rc1 Nxc3 16. Qxc3 Qxc3 17. Rxc3 Ke7 18. Rfc1 Rhc8 19. Kf1 Kd6 {½-½ (19) Fernandez Medina,E (2282)-Au Cardero,R (2286) ICCF email 2017}) 11... cxd4 {[%emt 0:03:18]} 12. Nxd4 {[%emt 0:00:40]} Nxd4 {[%emt 0:01:55]} 13. exd4 {[%emt 0:00:05]} Bd6 {[%emt 0:01:23]} 14. Be5 {[%emt 0:03:21]} Rc8 {[%emt 0:17:58]} (14... O-O $11) 15. Qa4+ {[%emt 0:05:24]} (15. f4 $5 {[%cal Rf4f5]} Bxe5 16. dxe5 $14 (16. fxe5 Ne4 $14)) 15... Bd7 {[%emt 0:03:53]} 16. Qb3 {[%emt 0:00:07]} Bc6 {[%emt 0:00:10]} 17. Rad1 {[%emt 0:01:35]} O-O {[%emt 0:01:07]} 18. Bf3 {[%emt 0:00:15]} Bb8 {[%emt 0:14:35]} 19. Bxf6 {[%emt 0:12:14] 0x0.0013f32e61b5dp-1022s more active pieces.} Qxf6 {[%emt 0:00:13]} 20. Bxd5 {[%emt 0:00:10]} Rfd8 {[%emt 0:06:41] [#] Hoping for ...Bxd5.} 21. Bxc6 {[%emt 0:05:10]} Rxc6 {[%emt 0:00:46]} 22. g3 {[%emt 0:00:29]} ({Resist} 22. Qxb7 Rb6 23. Qe4 Rxb2 $14) 22... Qf3 {[%emt 0:03:01]} 23. d5 {[%emt 0:08:24]} Rg6 {[%emt 0:06:02]} 24. Na4 {[%emt 0:00:13]} ({Reject} 24. Qxb7 $6 Bxg3 25. hxg3 (25. fxg3 Rxg3+ 26. hxg3 Qxg3+ 27. Kh1 Qh3+ 28. Kg1 Qg3+ 29. Kh1 Qh3+ 30. Kg1 Qg3+ $11) 25... Rxg3+ 26. fxg3 Qxg3+ 27. Kh1 Qh3+ 28. Kg1 Qg3+ 29. Kh1 Qh3+ 30. Kg1 Qg3+ $11) (24. Rd2 $16) 24... Qxb3 $11 {[%emt 0:08:29]} 25. axb3 {[%emt 0:00:01]} Rgd6 {[%emt 0:03:42]} 26. Rfe1 {[%emt 0:00:07]} Kf8 {[%emt 0:00:49] Against Re7} (26... Rxd5 $2 27. Rxd5 Rxd5 28. Re8+ Kh7 29. Nc3 $18) 27. Re5 {[%emt 0:07:16]} g6 {[%emt 0:09:50]} 28. Nc5 {[%emt 0:03:34] Inhibits R6d7.} Rb6 $1 {[%emt 0:01:02][%cal Bd6b6,Bb6b5,Bb5c5][%mdl 32]} 29. Re4 {[%emt 0:07:52]} Bd6 {[%emt 0:04:31]} 30. b4 {[%emt 0:00:51]} Rb5 {[%emt 0:00:26]} 31. Rc4 {[%emt 0:01:09]} a5 {[%emt 0:00:45]} 32. Rd2 {[%emt 0:05:33]} Be7 {[%emt 0:02:19]} 33. Rcd4 {[%emt 0:07:28]} Bxc5 {[%emt 0:01:03]} 34. bxc5 {[%emt 0:00:02]} Rxc5 {[%emt 0:00:04][%mdl 4096] Endgame KRR-KRR} 35. d6 {[%emt 0:02:49]} Rc6 {[%emt 0:02:28]} 36. Kg2 {[%emt 0:00:36]} Kg7 {[%emt 0:01:26]} 37. g4 {[%emt 0:03:11]} Kf6 {[%emt 0:00:35]} 38. h4 {[%emt 0:00:33]} Rd7 {[%emt 0:01:07]} 39. Kf3 {[%emt 0:03:04]} Rb6 {[%emt 0:00:46]} 40. Rf4+ {[%emt 0:00:00]} Kg7 {[%emt 0:00:00]} 41. Rfd4 {[%emt 0:05:15]} Kf6 {[%emt 0:00:55]} 42. Kg3 {[%emt 0:00:42]} Rb5 {[%emt 0:07:20]} 43. f4 {[%emt 0:01:29]} Kg7 {[%emt 0:07:33]} 44. Kf3 {[%emt 0:05:27]} f5 {[%emt 0:04:01]} 45. g5 {[%emt 0:02:45]} hxg5 {[%emt 0:00:50]} 46. fxg5 {[%emt 0:00:48]} Kf7 {[%emt 0:00:24]} (46... Rb3+ $11 47. Kf4 Rh3) 47. Kf4 $14 {[%emt 0:00:12]} b6 $2 {[%emt 0:02:02]} ({Black should try} 47... Rc5 $1 $14) 48. Re2 $18 {[%emt 0:03:46]} Rc5 {[%emt 0:01:00] [#]} 49. Re5 {[%emt 0:01:46]} ({White must play} 49. h5 $1 $18 {[%cal Rh5g6]}) 49... Rc1 {[%emt 0:06:14]} 50. Rb5 {[%emt 0:00:12]} ({White should play} 50. Re3 $1 $14) 50... Ke6 $1 $11 {[%emt 0:00:39] The position is equal.} 51. Rxb6 {[%emt 0:00:17]} Rh1 {[%emt 0:00:48]} 52. Kg3 {[%emt 0:00:14]} Rg1+ {[%emt 0:01:59]} 53. Kf2 {[%emt 0:00:14]} Rh1 {[%emt 0:00:16]} 54. Kg2 {[%emt 0:00:40]} Re1 {[%emt 0:00:45]} 55. Rd3 {[%emt 0:01:39]} Re4 {[%emt 0:00:47]} 56. Kh3 {[%emt 0:01:27]} Re1 {[%emt 0:02:37]} 57. Rb8 {[%emt 0:03:00] Re8+ would kill now.} Rxd6 {[%emt 0:01:10]} 58. Rxd6+ {[%emt 0:00:18]} Kxd6 {[%emt 0:00:03] KR-KR} 59. Rb6+ {[%emt 0:00:19]} Ke5 {[%emt 0:00:15]} 60. Rxg6 {[%emt 0:00:05]} Kf4 {[%emt 0:00:50]} 61. Rf6 {[%emt 0:01:50]} Rh1+ {[%emt 0:00:27]} 62. Kg2 {[%emt 0:00:07]} Rxh4 {[%emt 0:00:05]} 63. g6 {[%emt 0:00:16]} Ke5 {[%emt 0:01:10]} 64. Rb6 {[%emt 0:00:15]} Rg4+ {[%emt 0:00:23]} 65. Kf2 {[%emt 0:01:48]} a4 {[%emt 0:00:08]} 66. Kf3 {[%emt 0:00:03]} Rf4+ {[%emt 0:00:21]} 67. Ke3 {[%emt 0:00:58] Threatening mate with Rb5+.} Rg4 {[%emt 0:00:05]} 68. Ra6 {[%emt 0:00:25]} Rg3+ {[%emt 0:00:25]} 69. Kf2 {[%emt 0:00:26]} Rg4 {[%emt 0:00:05]} 70. Kf3 {[%emt 0:17:02] Weighted Error Value: White=0.10 (very precise) /Black=0.14 (very precise)} 1/2-1/2

[Event "1st Chessable Sunway Formentera 2022"]
[Site "Formentera Punta Prima"]
[Date "2022.05.05"]
[Round "7.7"]
[White "Song, Julien"]
[Black "Jarmula, Lukasz"]
[Result "1-0"]
[ECO "D20"]
[WhiteElo "2388"]
[BlackElo "2459"]
[Annotator "TA"]
[PlyCount "89"]
[EventDate "2022.05.05"]
[EventType "swiss"]
[EventCountry "ESP"]
[SourceTitle "playchess.com"]
[Source "ChessBase"]
[SourceQuality "1"]
[TimeControl "40/5400+30:1800+30"]

{[%evp 10,89,29,31,25,22,10,9,50,29,94,89,93,85,81,74,68,70,79,80,208,142,235,229,397,375,388,377,471,465,825,446,446,437,446,446,444,413,454,462,463,489,527,522,507,487,471,449,440,400,390,343,327,336,330,324,319,322,312,318,369,316,453,409,508,447,618,590,1386,1393,1377,1325,1310,1253,1514,1445,5310,5310,4502,2786,2820,2374]} 1. d4 {[%emt 0:00:17]} d5 {[%emt 0:00:07]} 2. c4 {[%emt 0:00:29]} dxc4 {[%emt 0:00:09]} 3. e4 {[%emt 0:00:43]} e5 {[%emt 0:00:09]} 4. Nf3 {[%emt 0:00:40]} exd4 {[%emt 0:00:07]} 5. Bxc4 {[%emt 0:00:16]} Nc6 {[%emt 0:00:06]} 6. O-O {[%emt 0:00:30][%mdl 1024] White has compensation.} Be6 {[%emt 0:00:06] D20: Queen's Gambit Accepted: 3 e3 and 3 e4.} 7. Nbd2 {[%emt 0:00:42] 7.Bxe6 is a critical line.} Qf6 {[%emt 0:07:18]} 8. Qa4 {[%emt 0:02:18] [#]} Bd7 $146 {[%emt 0:06:40] The position is equal.} ({Predecessor:} 8... O-O-O 9. Bb5 Nge7 10. Nb3 Bg4 11. Bg5 Qg6 12. Nbd2 f6 13. Bf4 Bxf3 14. Nxf3 Qxe4 {½-½ (22) Cermak,J (2223)-Preussner,M (2111) ICCF email 2021}) 9. Bb5 {[%emt 0:15:38]} Bc5 {[%emt 0:05:04]} (9... a6 $11) 10. Nb3 $1 $16 {[%emt 0:19:23]} Bb6 {[%emt 0:00:54]} 11. Bg5 {[%emt 0:00:17]} Qg6 {[%emt 0:08:27]} 12. Nbxd4 {[%emt 0:15:14] 0x0.002472422f15dp-1022s more active pieces.} (12. Rac1 {looks sharper.} f6 13. Bxc6 bxc6 14. Bf4) 12... Bxd4 {[%emt 0:15:49]} 13. Bxc6 {[%emt 0:00:21]} Bxf2+ {[%emt 0:05:33]} 14. Rxf2 {[%emt 0:00:18]} Bxc6 {[%emt 0:00:09] Black cannot hold the game after this.} (14... Qxc6 $16 15. Qa3 Qa4) 15. Qc4 {[%emt 0:13:34][%cal Of3e5]} Qe6 {[%emt 0:09:17] [#] Prevents Ne5.} (15... f6 $16 {might work better.}) 16. Qc3 $1 $18 {[%emt 0:06:41]} f6 $2 {[%emt 0:13:30] [#]} (16... Nf6 17. Nd4 Qd7) 17. Nd4 $1 {[%emt 0:00:10]} Qd7 {[%emt 0:00:24] [#]} 18. Rd2 $1 {[%emt 0:01:25]} Bxe4 {[%emt 0:07:00]} (18... h5 19. e5) 19. Re1 {[%emt 0:05:59]} Qd5 {[%emt 0:04:04]} (19... Ne7 $142 20. Rxe4 O-O-O) 20. Rxe4+ {[%emt 0:02:49]} Qxe4 {[%emt 0:00:59][%cal Re4e1] [#]} 21. Re2 {[%emt 0:00:15] Inhibits Qe1+.} Qxe2 {[%emt 0:00:26]} 22. Nxe2 {[%emt 0:00:02]} Ne7 {[%emt 0:00:29]} 23. Bf4 {[%emt 0:01:40]} Nd5 {[%emt 0:01:22]} 24. Qh3 {[%emt 0:01:31]} Nxf4 {[%emt 0:04:36]} 25. Qe3+ {[%emt 0:01:27]} ({Not} 25. Nxf4 O-O 26. Qb3+ Kh8 27. Qxb7 Rab8 28. Qxc7 Rfc8 29. Qxa7 Rc1+ 30. Kf2 Rc2+ 31. Kg3 Rcxb2 $18) 25... Kd7 {[%emt 0:05:33]} 26. Nxf4 {[%emt 0:00:41] aiming for Qe6+.} Rae8 {[%emt 0:00:08] Prevents Qe6+.} 27. Qxa7 {[%emt 0:02:05]} Re4 {[%emt 0:00:31]} 28. g3 {[%emt 0:01:42]} Kc6 {[%emt 0:01:17]} 29. Qa3 {[%emt 0:02:07] Strongly threatening Qc3+.} Rhe8 {[%emt 0:01:05]} 30. Qc3+ {[%emt 0:00:56]} Kd7 {[%emt 0:00:19]} 31. Nd5 {[%emt 0:03:07]} c6 {[%emt 0:00:30]} 32. Nb6+ {[%emt 0:00:24]} Kc7 {[%emt 0:00:14]} 33. Nc4 {[%emt 0:00:39] Qa5+ is the strong threat.} Kb8 {[%emt 0:02:43]} 34. Qd3 {[%emt 0:00:39]} R4e6 {[%emt 0:01:21]} 35. a4 {[%emt 0:00:26][%cal Ba2a4,Ba4a5][%mdl 32]} Kc7 {[%emt 0:00:29]} (35... g5 {was called for.} 36. g4 Re2) 36. Kf2 {[%emt 0:00:38]} f5 {[%emt 0:00:41]} 37. a5 {[%emt 0:00:33] White is clearly winning.} g6 {[%emt 0:00:34]} 38. Qd4 {[%emt 0:00:52]} R8e7 {[%emt 0:00:39]} 39. Qf4+ {[%emt 0:01:12]} Kd7 {[%emt 0:00:25]} 40. Qb8 {[%emt 0:00:00][%cal Rc4b6]} Re2+ {[%emt 0:00:00]} 41. Kf3 {[%emt 0:07:56]} R7e4 {[%emt 0:02:43]} 42. Qxb7+ {[%emt 0:01:55]} Ke6 {[%emt 0:00:34]} 43. Qxc6+ {[%emt 0:01:05]} Ke7 {[%emt 0:00:06]} 44. Qd6+ {[%emt 0:02:30]} Kf7 {[%emt 0:00:43]} 45. Qd3 {[%emt 0:00:34] Weighted Error Value: White=0.19 (very precise) /Black=0.44} 1-0

[Event "1st Chessable Sunway Formentera 2022"]
[Site "Formentera Punta Prima"]
[Date "2022.05.05"]
[Round "7.8"]
[White "Tsatsalashvili, Keti"]
[Black "Yankelevich, Lev"]
[Result "0-1"]
[ECO "A50"]
[WhiteElo "2331"]
[BlackElo "2473"]
[Annotator "TA"]
[PlyCount "114"]
[EventDate "2022.05.05"]
[EventType "swiss"]
[EventCountry "ESP"]
[SourceTitle "playchess.com"]
[Source "ChessBase"]
[SourceQuality "1"]
[TimeControl "40/5400+30:1800+30"]

{[%evp 9,114,5,8,0,12,0,10,0,22,18,31,18,28,27,15,11,30,-11,25,27,42,21,33,29,36,36,38,3,38,18,20,13,31,27,60,59,58,0,4,-10,-5,-38,0,0,0,0,0,0,0,-148,-143,-222,-111,-136,-22,-35,-46,-34,-37,-40,-49,-51,-57,-64,-63,-70,-70,-157,-146,-152,-151,-191,-166,-219,-208,-373,-355,-375,-364,-632,-620,-638,-654,-1239,-1346,-1880,-1879,-3808,-3277,-3651,-4133,-5514,-3997,-2749,-2470,-29971,-29972,-29974,-29974,-29979,-29980,-29980,-29981,-29981,-29982,-29982,-29983]} 1. d4 {[%emt 0:03:57]} Nf6 {[%emt 0:00:05]} 2. c4 {[%emt 0:00:04]} b6 {[%emt 0:01:00]} 3. Nc3 {[%emt 0:00:55]} Bb7 {[%emt 0:00:46]} 4. Bg5 {[%emt 0:00:30]} e6 {[%emt 0:00:52]} 5. e3 {[%emt 0:00:15]} h6 {[%emt 0:00:13]} 6. Bh4 {[%emt 0:02:12] A50: Queen's Fianchetto Defence (1 d4 Nf6 2 c4 b6).} Bb4 {[%emt 0:00:14]} 7. Nge2 {[%emt 0:00:56]} O-O {[%emt 0:01:09]} 8. a3 {[%emt 0:00:15] The position is equal.} Be7 {[%emt 0:00:10]} 9. Bg3 {[%emt 0:04:47] [#]} Nh5 $146 {[%emt 0:14:16]} ({Predecessor:} 9... d5 10. cxd5 exd5 11. Nf4 Nbd7 12. Bd3 Re8 13. O-O a5 14. Rc1 Nf8 15. Qc2 c6 {0-1 (42) Yermolinsky,A (2597)-Kasimdzhanov,R (2595) Wijk aan Zee 1999}) 10. Nf4 {[%emt 0:02:12]} Nxf4 {[%emt 0:05:18]} 11. Bxf4 {[%emt 0:00:11]} Bg5 {[%emt 0:01:29]} 12. Bg3 {[%emt 0:01:45]} d6 {[%emt 0:08:19]} 13. d5 {[%emt 0:09:18]} e5 {[%emt 0:03:10]} 14. h4 {[%emt 0:00:51]} Be7 {[%emt 0:00:46]} 15. f3 {[%emt 0:00:09]} Nd7 {[%emt 0:04:39]} 16. Bd3 {[%emt 0:01:48]} Nc5 {[%emt 0:07:01]} 17. Bc2 {[%emt 0:00:18]} f5 {[%emt 0:00:04]} 18. Bf2 {[%emt 0:11:51]} a5 {[%emt 0:03:18][%cal Oe5e4]} 19. b4 {[%emt 0:08:02]} (19. e4 $5 {[%cal Re4f5]}) 19... Nd7 {[%emt 0:02:10][%cal Oe5e4]} 20. e4 $1 {[%emt 0:13:42]} axb4 {[%emt 0:02:51]} (20... f4 {keeps more tension.} 21. Ba4 Nf6 22. h5 Kh8) 21. axb4 {[%emt 0:00:12]} Rxa1 {[%emt 0:00:06]} 22. Qxa1 {[%emt 0:00:03]} fxe4 {[%emt 0:00:03]} 23. Nxe4 {[%emt 0:02:20]} (23. Bxe4 $14 Nf6 24. Bg6) 23... b5 $11 {[%emt 0:00:05]} 24. cxb5 {[%emt 0:05:22]} (24. Qa7 Qa8 25. Qxa8 Rxa8 26. cxb5 Ra1+ 27. Bd1 Rb1 $17) 24... Bxd5 {[%emt 0:00:58]} 25. Qd1 {[%emt 0:00:20]} Bc4 {[%emt 0:12:24]} 26. Bb3 $1 {[%emt 0:06:51]} Bxb3 {[%emt 0:00:07]} (26... d5 27. Bxc4 dxc4 28. Qc2 $14 (28. Qd5+ Kh8 $14)) 27. Qxb3+ {[%emt 0:00:02]} Kh8 {[%emt 0:00:07]} 28. Qe6 {[%emt 0:03:46]} Nf6 {[%emt 0:05:18]} 29. Ng5 {[%emt 0:04:49]} Qe8 $36 {[%emt 0:03:46][%mdl 2048] Black is really pushing.} (29... hxg5 30. hxg5+ Nh7 31. Qg6 Kg8 32. Rxh7 Bf6 33. Qh5 g6 34. Qxg6+) 30. Be3 {[%emt 0:07:44]} (30. g3 $17) 30... Nh5 {[%emt 0:01:07]} ({Better is} 30... Nh7 $19 31. g3 (31. Nxh7 $2 Bxh4+ 32. Rxh4 Qxe6 $19) 31... hxg5 32. hxg5 g6) 31. Qd5 {[%emt 0:04:30]} Qg6 {[%emt 0:03:56]} ({Not} 31... hxg5 32. hxg5 Qg6 33. Qe4 Qxe4 34. fxe4 $15) (31... Qa8 $17 32. Qxa8 (32. Nf7+ $2 Kh7 $19) 32... Rxa8) 32. Qe4 $11 {[%emt 0:02:14]} Qxe4 {[%emt 0:00:31]} 33. Nxe4 {[%emt 0:00:07]} Rb8 {[%emt 0:00:47]} 34. Nc3 {[%emt 0:00:51]} Ng3 {[%emt 0:00:15]} 35. Rg1 {[%emt 0:02:21]} Nf5 {[%emt 0:02:29]} 36. Ke2 {[%emt 0:00:28]} Bxh4 {[%emt 0:00:28]} 37. Ra1 {[%emt 0:00:24]} Nd4+ {[%emt 0:00:56] Black converts the advantage convincingly.} ({Much worse is} 37... Nxe3 $6 38. Kxe3 e4 39. Kxe4 $11) 38. Kd3 {[%emt 0:02:26]} (38. Bxd4 $15 exd4 39. Nd5 Rxb5 40. Ra5) 38... Nxb5 $17 {[%emt 0:00:38]} 39. Nxb5 {[%emt 0:00:07]} Rxb5 {[%emt 0:00:04][%mdl 4096] Endgame KRB-KRB} 40. Ra8+ {[%emt 0:00:00]} Kh7 {[%emt 0:00:00]} 41. Kc4 {[%emt 0:00:50]} (41. Bd2 {was necessary.}) 41... c6 $19 {[%emt 0:00:57]} 42. Ra6 $2 {[%emt 0:03:07] [#]} (42. Bd2) 42... d5+ {[%emt 0:04:48]} 43. Kb3 {[%emt 0:02:45]} Be1 {[%emt 0:05:02]} 44. Rxc6 $2 {[%emt 0:06:55]} (44. Kc2) 44... Rxb4+ {[%emt 0:00:05]} 45. Ka3 {[%emt 0:00:35]} Rc4 {[%emt 0:00:23]} ({And not} 45... d4 46. Rc1 dxe3 47. Rxe1 $19) 46. Rxc4 {[%emt 0:02:35]} dxc4 {[%emt 0:00:03] KB-KB} 47. Bc5 {[%emt 0:00:07]} Kg6 {[%emt 0:00:22]} 48. Kb2 {[%emt 0:00:38]} h5 {[%emt 0:00:14] [#] Threatens to win with ...Kf5.} 49. Kc2 {[%emt 0:00:27]} Kf5 {[%emt 0:00:06] Hoping for ...Kf4.} 50. Bf8 {[%emt 0:01:26]} g6 {[%emt 0:00:31]} 51. Kd1 {[%emt 0:00:32]} Ba5 {[%emt 0:00:26] White must now prevent ...Kf4.} 52. Ke2 {[%emt 0:00:22]} e4 {[%emt 0:01:09] Black mates.} 53. Bh6 {[%emt 0:00:57]} Bc7 {[%emt 0:01:49]} 54. Bc1 {[%emt 0:01:13]} exf3+ {[%emt 0:03:56]} 55. Kxf3 {[%emt 0:00:07]} c3 {[%emt 0:00:08][%cal Bc4c3,Bc3c2][%mdl 32]} 56. g3 {[%emt 0:01:40]} c2 {[%emt 0:00:13]} 57. Ba3 {[%emt 0:00:11]} Bd8 {[%emt 0:00:05] Weighted Error Value: White=0.70/Black=0.19 (very precise)} 0-1

[Event "1st Chessable Sunway Formentera 2022"]
[Site "Formentera Punta Prima"]
[Date "2022.05.05"]
[Round "7.9"]
[White "Papadiamandis, Elliot"]
[Black "Soham Das"]
[Result "0-1"]
[ECO "B15"]
[WhiteElo "2373"]
[BlackElo "2266"]
[Annotator "TA"]
[PlyCount "104"]
[EventDate "2022.05.05"]
[EventType "swiss"]
[EventCountry "ESP"]
[SourceTitle "playchess.com"]
[Source "ChessBase"]
[SourceQuality "1"]
[TimeControl "40/5400+30:1800+30"]

{[%evp 15,104,29,29,30,50,28,29,17,25,16,14,6,19,14,22,19,21,-36,-54,-40,-44,-43,-29,-45,-38,-59,-47,-148,-149,-136,-152,-179,-183,-186,-181,-215,-93,-95,-88,-74,-72,-72,-66,-62,-33,-97,-100,-149,-84,-85,-79,-83,-59,-426,-419,-401,-406,-548,-554,-815,-794,-29959,-29960,-12794,-29963,-12821,-12817,-12807,-12807,-12807,-12801,-29969,-7272,-29980,-29981,-29981,-29982,-29982,-29983,-29985,-29986,-29991,-29992,-29992,-29993,-29993,-29994,-29994,-29988,-29988,-29989]} 1. e4 {[%emt 1:31:00]} c6 {[%emt 1:31:00]} 2. d4 {[%emt 0:00:30]} d5 {[%emt 0:00:30]} 3. Nd2 {[%emt 0:00:30]} dxe4 {[%emt 0:00:30]} 4. Nxe4 {[%emt 0:00:30]} Nf6 {[%emt 0:00:30]} 5. Nxf6+ {[%emt 0:00:30]} exf6 {[%emt 0:00:30]} 6. c3 {[%emt 0:00:30]} Bd6 {[%emt 0:00:30]} 7. Bd3 {[%emt 0:00:30]} O-O {[%emt 0:00:30]} 8. Ne2 {[%emt 0:00:30]} Re8 {[%emt 0:00:30]} 9. Qc2 {[%emt 0:00:30] B15: Caro-Kann: 3 Nc3: 3...g6 and 3...dxe4 4 Nxe4 Nf6 5 Nxf6+ exf6.} h5 {[%emt 0:00:30]} 10. Be3 {[%emt 0:00:30]} Nd7 {[%emt 0:00:30]} 11. O-O-O {[%emt 0:00:30] White has an edge.} Nf8 {[%emt 0:00:30]} 12. Kb1 {[%emt 0:00:30]} Be6 {[%emt 0:00:30]} 13. c4 {[%emt 0:00:30]} Rc8 {[%emt 0:00:30][%cal Ob7b5]} 14. a3 {[%emt 0:00:30] [#]} a5 $146 {[%emt 0:00:30][%cal Ob7b5]} ({Predecessor:} 14... Ng6 15. h3 h4 16. f4 f5 17. Bc1 b5 18. c5 Bc7 19. Nc3 Ne7 20. Rhe1 Qd7 {0-1 (39) Mammadzada,G (2470)-Krysa,L (2531) Gibraltar 2022}) 15. Nc3 {[%emt 0:00:30] Against b5} b5 {[%emt 0:00:30]} 16. c5 {[%emt 0:00:30] [#]} (16. cxb5 $11 cxb5 17. Bxb5) 16... b4 $1 $15 {[%emt 0:00:30]} 17. cxd6 {[%emt 0:00:30] Threatens to win with axb4.} bxc3 {[%emt 0:00:30]} 18. Qxc3 {[%emt 0:00:30]} Qxd6 {[%emt 0:00:30]} 19. Qxa5 {[%emt 0:00:30]} Bd5 {[%emt 0:00:30]} 20. Qc5 {[%emt 0:00:30]} Qc7 {[%emt 0:00:30]} ({Of course not} 20... Qxc5 21. dxc5 Bxg2 22. Rhg1 $11) 21. Qc3 {[%emt 0:00:30]} (21. Rc1 $15) 21... Bxg2 $17 {[%emt 0:00:30]} 22. Rhg1 {[%emt 0:00:30]} Qxh2 {[%emt 0:00:30]} 23. Bf4 {[%emt 0:00:30]} Qxf4 {[%emt 0:00:30]} 24. Rxg2 {[%emt 0:00:30]} Ne6 {[%emt 0:00:30]} 25. Bc2 {[%emt 0:00:30]} Ng5 {[%emt 0:00:30]} (25... g6 $19 {has better winning chances. ...Rcd8 is the strong threat.} 26. Qe3 Rcd8) 26. Qg3 {[%emt 0:00:30]} Qxg3 {[%emt 0:00:30]} 27. fxg3 {[%emt 0:00:30]} Kf8 {[%emt 0:00:30]} 28. d5 {[%emt 0:00:30]} cxd5 {[%emt 0:00:30]} 29. Rxd5 {[%emt 0:00:30]} Re3 {[%emt 0:00:30]} 30. Ka2 {[%emt 0:00:30]} ({White should try} 30. Rd3 $15 Rxd3 31. Bxd3) 30... g6 {[%emt 0:00:30]} 31. b4 {[%emt 0:00:30]} (31. Rb5 $142) 31... Rcc3 {[%emt 0:00:30]} (31... Nf3 $142 $1 {[%cal Rf3e1] Hoping for ...Ne1.} 32. Bd1 Ne1) 32. a4 {[%emt 0:00:30]} Nf3 {[%emt 0:00:30]} ({Don't play} 32... Rxg3 33. Rxg3 Rxg3 34. a5 $14) 33. Bd1 {[%emt 0:00:30]} Ne5 {[%emt 0:00:30] White must now prevent ...Ra3+. Black is more active.} 34. Rc2 $2 {[%emt 0:00:30][%mdl 8192] This move loses the game for White.} (34. b5 $1 $15) 34... Rxc2+ $19 {[%emt 0:00:30]} ({Don't blunder} 34... Ra3+ $2 35. Kb1 $19) 35. Bxc2 {[%emt 0:00:30][%mdl 4096] Endgame [#] KRB-KRN} Nc6 $1 {[%emt 0:00:30]} 36. Rb5 {[%emt 0:00:30] [#]} Re2 $1 {[%emt 0:00:30]} 37. Kb2 {[%emt 0:00:30] [#]} Rxc2+ $1 {[%emt 0:00:30][%mdl 512]} 38. Kxc2 {[%emt 0:00:30] KR-KN} (38. Ka1 Rg2) 38... Nd4+ {[%emt 0:00:30]} 39. Kd3 {[%emt 0:00:30]} Nxb5 {[%emt 0:00:30] KN-K3P} 40. Kc4 {[%emt 0:00:30]} Nc7 {[%emt 0:00:30]} 41. b5 {[%emt 0:30:30]} Ke7 {[%emt 0:30:30]} 42. b6 {[%emt 0:00:30] [#]} g5 $1 {[%emt 0:00:30][%cal Oh5h4]} 43. b7 {[%emt 0:00:30]} (43. bxc7 Kd7) 43... Na6 {[%emt 0:00:30] ( -> ...h4)} 44. Kb5 {[%emt 0:00:30]} Nb8 {[%emt 0:00:30] Black mates.} 45. a5 {[%emt 0:00:30]} Kd6 {[%emt 0:00:30]} 46. Kb6 {[%emt 0:00:30]} Nd7+ {[%emt 0:00:30]} 47. Ka7 {[%emt 0:00:30]} Kc7 {[%emt 0:00:30]} 48. Ka8 {[%emt 0:00:30]} Nb8 {[%emt 0:00:30]} 49. Ka7 {[%emt 0:00:30]} h4 {[%emt 0:00:30]} 50. gxh4 {[%emt 0:00:30]} gxh4 {[%emt 0:00:30]} (50... Nc6+ $2 51. Ka8 $18) 51. a6 {[%emt 0:00:30]} Nxa6 {[%emt 0:00:30]} 52. Kxa6 {[%emt 0:00:30]} Kb8 {[%emt 0:00:30] Weighted Error Value: White=0.84/Black=0.06 (flawless)} (52... h3 53. Ka7 Kd6 54. b8=Q+ Kd5 55. Qf4 h2 56. Qxh2 Ke4 57. Qe2+ Kf4 58. Qf2+ Ke5 59. Kb6) 0-1